[Event "XXIX Cracovia 2018"]
[Site "Krakow"]
[Date "2018.12.30"]
[Round "5"]
[White "Colijn, Stefan"]
[Black "Dzierzak, Radoslaw"]
[Result "0-1"]
[ECO "A05"]
[WhiteElo "2331"]
[BlackElo "2283"]
[Annotator "NA"]
[PlyCount "76"]
[EventDate "2018.12.27"]
[EventType "swiss"]
[EventCountry "POL"]
[SourceTitle "playchess.com"]
[Source "ChessBase"]
[SourceQuality "1"]
[TimeControl "40/5400+30:1800+30"]

1. Nf3 {[%emt 0:00:00]} Nf6 {[%emt 0:00:00]} 2. d4 {[%emt 0:00:50]} e6 {[%emt 0:00:08]} 3. g3 {[%emt 0:00:44]} d5 {[%emt 0:02:59]} 4. Bg2 {[%emt 0:00:30]} c5 {[%emt 0:00:12]} 5. O-O {[%emt 0:01:08]} cxd4 {[%emt 0:04:30]} 6. Nxd4 {[%emt 0:00:20]} e5 {[%emt 0:00:44]} 7. Nb3 {[%emt 0:01:05]} Be6 {[%emt 0:00:30]} 8. c4 {[%emt 0:01:51]} Nc6 {[%emt 0:02:06]} 9. cxd5 {[%emt 0:01:10]} Nxd5 {[%emt 0:01:15]} 10. Nc3 {[%emt 0:04:16]} Nxc3 {[%emt 0:03:34]} 11. bxc3 {[%emt 0:00:02]} Qc7 {[%emt 0:06:18]} 12. Be3 {[%emt 0:06:33]} Rd8 {[%emt 0:03:48]} 13. Qb1 {[%emt 0:02:10]} b6 {[%emt 0:02:44]} 14. a4 {[%emt 0:12:11]} Be7 {[%emt 0:02:42]} 15. a5 {[%emt 0:02:27]} b5 {[%emt 0:17:17]} 16. Nd2 {[%emt 0:22:03]} Rb8 {[%emt 0:01:54]} 17. f4 {[%emt 0:03:52]} f5 {[%emt 0:10:35]} 18. g4 {[%emt 0:08:16]} O-O {[%emt 0:03:26]} 19. gxf5 {[%emt 0:00:25]} Bxf5 {[%emt 0:00:36]} 20. Qa2+ {[%emt 0:03:18]} Kh8 {[%emt 0:00:59]} 21. fxe5 {[%emt 0:04:26]} Nxe5 {[%emt 0:01:19]} 22. Bd4 {[%emt 0:01:16]} Ng4 {[%emt 0:05:07]} 23. Nf3 {[%emt 0:00:05]} Be4 {[%emt 0:01:40]} 24. e3 {[%emt 0:00:04]} Bg5 {[%emt 0:04:37]} 25. Qe2 {[%emt 0:08:31]} Rbe8 {[%emt 0:01:05]} 26. Bh1 {[%emt 0:12:45]} Bxe3+ {[%emt 0:08:58]} 27. Bxe3 {[%emt 0:00:01]} Bxf3 {[%emt 0:00:14]} 28. Rxf3 {[%emt 0:00:20]} Rxf3 {[%emt 0:00:25]} 29. Bb6 {[%emt 0:01:45]} Rxe2 {[%emt 0:02:07]} 30. Bxc7 {[%emt 0:00:02]} Rxc3 {[%emt 0:01:11]} 31. Bb6 {[%emt 0:01:56]} Rec2 {[%emt 0:02:31]} 32. Bxa7 {[%emt 0:00:58]} Rc1+ {[%emt 0:00:04]} 33. Rxc1 {[%emt 0:00:02]} Rxc1+ {[%emt 0:00:05]} 34. Kg2 {[%emt 0:00:07]} Ra1 {[%emt 0:00:44]} 35. Bb6 {[%emt 0:00:43]} b4 {[%emt 0:03:11]} 36. h3 {[%emt 0:00:21]} b3 {[%emt 0:01:10]} 37. Bd4 {[%emt 0:00:14]} Ra2+ {[%emt 0:00:09]} 38. Kg3 {[%emt 0:00:14]} Nf6 {[%emt 0:00:09]} 0-1

[Event "XXIX Cracovia 2018"]
[Site "Krakow"]
[Date "2018.12.30"]
[Round "5"]
[White "Licznerski, Lukasz"]
[Black "Jaroch, Karol"]
[Result "1-0"]
[ECO "C02"]
[WhiteElo "2326"]
[BlackElo "2259"]
[Annotator "NA"]
[PlyCount "55"]
[EventDate "2018.12.27"]
[EventType "swiss"]
[EventCountry "POL"]
[SourceTitle "playchess.com"]
[Source "ChessBase"]
[SourceQuality "1"]
[TimeControl "40/5400+30:1800+30"]

1. e4 {[%emt 0:00:37]} e6 {[%emt 0:00:00]} 2. d4 {[%emt 0:00:05]} d5 {[%emt 0:00:00]} 3. e5 {[%emt 0:00:04]} c5 {[%emt 0:00:00]} 4. c3 {[%emt 0:00:06]} Nc6 {[%emt 0:00:00]} 5. Nf3 {[%emt 0:00:04]} Qb6 {[%emt 0:00:05]} 6. a3 {[%emt 0:00:38]} c4 {[%emt 0:00:13]} 7. Nbd2 {[%emt 0:00:33]} Bd7 {[%emt 0:01:18]} 8. g3 {[%emt 0:02:08]} O-O-O {[%emt 0:16:24]} 9. b3 {[%emt 0:08:16]} cxb3 {[%emt 0:00:20]} 10. Nxb3 {[%emt 0:00:03]} f6 {[%emt 0:02:02]} 11. Bd3 {[%emt 0:10:54]} Qc7 {[%emt 0:09:14]} 12. O-O {[%emt 0:00:46]} Nge7 {[%emt 0:06:45]} 13. Qe2 {[%emt 0:10:41]} Ng6 {[%emt 0:01:12]} 14. Re1 {[%emt 0:00:12]} Be7 {[%emt 0:02:44]} 15. h4 {[%emt 0:04:04]} Rdf8 {[%emt 0:06:17]} 16. exf6 {[%emt 0:15:20]} gxf6 {[%emt 0:11:36]} 17. h5 {[%emt 0:00:44]} Bd6 {[%emt 0:00:07]} 18. hxg6 {[%emt 0:00:53]} hxg6 {[%emt 0:00:08]} 19. c4 {[%emt 0:15:49]} e5 {[%emt 0:06:45]} 20. cxd5 {[%emt 0:02:42]} Bg4 {[%emt 0:08:42]} 21. Bxg6 {[%emt 0:03:23]} exd4 {[%emt 0:14:09]} 22. dxc6 {[%emt 0:04:01]} Bxg3 {[%emt 0:00:08]} 23. Bh6 {[%emt 0:09:10]} Bh2+ {[%emt 0:01:58]} 24. Kg2 {[%emt 0:00:45]} Rfg8 {[%emt 0:03:40]} 25. Qe4 {[%emt 0:04:27]} f5 {[%emt 0:02:36]} 26. Qe6+ {[%emt 0:00:32]} Kb8 {[%emt 0:00:03]} 27. Nxh2 {[%emt 0:00:36]} Bh3+ {[%emt 0:02:54]} 28. Kf3 {[%emt 0:00:19]} 1-0

[Event "XXIX Cracovia 2018"]
[Site "Krakow"]
[Date "2018.12.30"]
[Round "5"]
[White "Dietmayer-Kraeutler, Marco"]
[Black "Marszalek, Maciej"]
[Result "1/2-1/2"]
[ECO "A65"]
[WhiteElo "2311"]
[BlackElo "2280"]
[Annotator "NA"]
[PlyCount "63"]
[EventDate "2018.12.27"]
[EventType "swiss"]
[EventCountry "POL"]
[SourceTitle "playchess.com"]
[Source "ChessBase"]
[SourceQuality "1"]
[TimeControl "40/5400+30:1800+30"]

1. d4 {[%emt 0:00:00]} Nf6 {[%emt 0:00:00]} 2. c4 {[%emt 0:00:00]} c5 {[%emt 0:00:00]} 3. d5 {[%emt 0:00:49]} e6 {[%emt 0:00:00]} 4. Nc3 {[%emt 0:00:07]} exd5 {[%emt 0:00:04]} 5. cxd5 {[%emt 0:00:04]} d6 {[%emt 0:00:05]} 6. e4 {[%emt 0:01:50]} g6 {[%emt 0:00:14]} 7. Be2 {[%emt 0:01:06]} Bg7 {[%emt 0:00:20]} 8. h4 {[%emt 0:00:51]} O-O {[%emt 0:06:38]} 9. h5 {[%emt 0:00:35]} a6 {[%emt 0:01:13]} 10. a4 {[%emt 0:01:57]} Re8 {[%emt 0:00:59]} 11. hxg6 {[%emt 0:00:28]} fxg6 {[%emt 0:00:34]} 12. Bg5 {[%emt 0:03:06]} Qa5 {[%emt 0:08:08]} 13. Qd2 {[%emt 0:03:21]} Nbd7 {[%emt 0:05:43]} 14. Nf3 {[%emt 0:07:56]} b5 {[%emt 0:05:14]} 15. Kf1 {[%emt 0:14:03]} b4 {[%emt 0:08:33]} 16. Nd1 {[%emt 0:04:22]} Bb7 {[%emt 0:05:21]} 17. Qf4 {[%emt 0:00:45]} Rxe4 {[%emt 0:02:44]} 18. Qxd6 {[%emt 0:01:18]} Qb6 {[%emt 0:04:11]} 19. Qh2 {[%emt 0:01:46]} Nf8 {[%emt 0:08:38]} 20. a5 {[%emt 0:01:03]} Qd8 {[%emt 0:01:38]} 21. Ne3 {[%emt 0:01:33]} Qe8 {[%emt 0:03:30]} 22. Bd3 {[%emt 0:05:08]} Nxd5 {[%emt 0:02:40]} 23. Nxd5 {[%emt 0:15:44]} Bxd5 {[%emt 0:01:40]} 24. Bxe4 {[%emt 0:13:40]} Qxe4 {[%emt 0:03:04]} 25. Qd6 {[%emt 0:00:32]} Re8 {[%emt 0:16:44]} 26. Kg1 {[%emt 0:04:32]} Bxb2 {[%emt 0:01:37]} 27. Rd1 {[%emt 0:03:04]} Bb3 {[%emt 0:01:09]} 28. Rd3 {[%emt 0:02:00]} Re6 {[%emt 0:08:03]} 29. Qd8 {[%emt 0:01:05]} Re8 {[%emt 0:00:07]} 30. Qd6 {[%emt 0:00:50]} Re6 {[%emt 0:01:53]} 31. Qd8 {[%emt 0:00:01]} Re8 {[%emt 0:00:07]} 32. Qd6 {[%emt 0:00:02]} 1/2-1/2

[Event "XXIX Cracovia 2018"]
[Site "Krakow"]
[Date "2018.12.30"]
[Round "5"]
[White "Lee, Qing Aun"]
[Black "Lewtak, Damian"]
[Result "1/2-1/2"]
[ECO "C41"]
[WhiteElo "2297"]
[BlackElo "2393"]
[Annotator "NA"]
[PlyCount "22"]
[EventDate "2018.12.27"]
[EventType "swiss"]
[EventCountry "POL"]
[SourceTitle "playchess.com"]
[Source "ChessBase"]
[SourceQuality "1"]
[TimeControl "40/5400+30:1800+30"]

1. e4 {[%emt 0:00:24]} d6 {[%emt 0:00:00]} 2. d4 {[%emt 0:00:10]} Nf6 {[%emt 0:00:00]} 3. Nc3 {[%emt 0:00:12]} e5 {[%emt 0:00:13]} 4. Nf3 {[%emt 0:00:15]} Nbd7 {[%emt 0:00:06]} 5. Bc4 {[%emt 0:00:16]} Be7 {[%emt 0:00:09]} 6. O-O {[%emt 0:00:26]} O-O {[%emt 0:00:26]} 7. a4 {[%emt 0:01:07]} c6 {[%emt 0:00:30]} 8. Ba2 {[%emt 0:00:43]} Qc7 {[%emt 0:09:31]} 9. Re1 {[%emt 0:00:32]} Rb8 {[%emt 0:02:13]} 10. h3 b5 11. b4 {[%emt 0:18:34]} bxa4 {[%emt 0:05:19]} 1/2-1/2

[Event "XXIX Cracovia 2018"]
[Site "Krakow"]
[Date "2018.12.30"]
[Round "5"]
[White "Roshka, Yevgeniy"]
[Black "Galperin, Platon"]
[Result "1/2-1/2"]
[ECO "A06"]
[WhiteElo "2293"]
[BlackElo "2363"]
[Annotator "NA"]
[PlyCount "90"]
[EventDate "2018.12.27"]
[EventType "swiss"]
[EventCountry "POL"]
[SourceTitle "playchess.com"]
[Source "ChessBase"]
[SourceQuality "1"]
[TimeControl "40/5400+30:1800+30"]

1. Nf3 d5 {[%emt 0:11:34]} 2. g3 {[%emt 0:11:41]} Bg4 {[%emt 0:00:07]} 3. Bg2 {[%emt 0:00:14]} Nd7 {[%emt 0:00:14]} 4. d4 {[%emt 0:01:05]} e6 {[%emt 0:00:57]} 5. O-O {[%emt 0:00:54]} Ngf6 {[%emt 0:01:54]} 6. Nbd2 {[%emt 0:09:05]} Be7 {[%emt 0:00:31]} 7. c4 {[%emt 0:00:08]} c6 {[%emt 0:00:11]} 8. b3 {[%emt 0:00:56]} O-O {[%emt 0:00:37]} 9. h3 {[%emt 0:01:45]} Bh5 {[%emt 0:00:22]} 10. Ne1 {[%emt 0:27:37]} c5 {[%emt 0:34:39]} 11. Bb2 {[%emt 0:02:48]} cxd4 {[%emt 0:00:46]} 12. Bxd4 {[%emt 0:00:37]} e5 {[%emt 0:00:14]} 13. Bb2 {[%emt 0:00:02]} d4 {[%emt 0:00:11]} 14. Nd3 {[%emt 0:03:53]} Qb6 {[%emt 0:14:45]} 15. Kh2 {[%emt 0:04:08]} Rfe8 {[%emt 0:05:31]} 16. Rc1 {[%emt 0:03:40]} Bc5 {[%emt 0:06:50]} 17. Ne4 Nxe4 {[%emt 0:00:59]} 18. Bxe4 {[%emt 0:01:49]} Rad8 {[%emt 0:02:59]} 19. Qd2 {[%emt 0:19:09]} Nf6 {[%emt 0:04:25]} 20. Nxc5 {[%emt 0:01:17]} Qxc5 {[%emt 0:00:02]} 21. Bg2 {[%emt 0:00:01]} Bg6 {[%emt 0:06:57]} 22. b4 {[%emt 0:02:13]} Qc7 {[%emt 0:00:01]} 23. e3 {[%emt 0:03:17]} Rd7 {[%emt 0:05:52]} 24. exd4 {[%emt 0:02:19]} exd4 {[%emt 0:00:01]} 25. Rfe1 {[%emt 0:01:35]} Rxe1 {[%emt 0:01:13]} 26. Rxe1 {[%emt 0:00:01]} h5 {[%emt 0:00:28]} 27. c5 {[%emt 0:02:16]} h4 {[%emt 0:00:30]} 28. Qg5 {[%emt 0:00:52]} hxg3+ {[%emt 0:00:16]} 29. fxg3 {[%emt 0:00:01]} Qd8 {[%emt 0:00:49]} 30. c6 {[%emt 0:00:24]} bxc6 {[%emt 0:00:02]} 31. Bxc6 {[%emt 0:00:01]} Re7 {[%emt 0:00:24]} 32. Rxe7 {[%emt 0:00:24]} Qxe7 {[%emt 0:00:01]} 33. Qd2 {[%emt 0:00:01]} d3 {[%emt 0:00:15]} 34. Bf3 {[%emt 0:00:16]} Qe6 {[%emt 0:00:28]} 35. a4 {[%emt 0:00:28]} Nd5 {[%emt 0:01:31]} 36. Qg5 {[%emt 0:00:35]} Nf6 {[%emt 0:00:44]} 37. Qd2 {[%emt 0:00:42]} Nd5 {[%emt 0:00:36]} 38. Qg5 {[%emt 0:00:02]} Ne7 {[%emt 0:00:23]} 39. Qe5 {[%emt 0:00:25]} Nf5 {[%emt 0:00:39]} 40. Qxe6 {[%emt 0:00:00]} fxe6 {[%emt 0:00:00]} 41. Kg2 {[%emt 0:09:08]} Ne3+ {[%emt 0:13:02]} 42. Kf2 {[%emt 0:00:07]} Nc4 {[%emt 0:00:29]} 43. Bc3 {[%emt 0:00:05]} d2 {[%emt 0:09:39]} 44. Ke2 {[%emt 0:00:29]} Bc2 {[%emt 0:00:17]} 45. Bxd2 {[%emt 0:00:04]} Nxd2 {[%emt 0:00:09]} 1/2-1/2

[Event "XXIX Cracovia 2018"]
[Site "Krakow"]
[Date "2018.12.30"]
[Round "5"]
[White "Marczuk, Dominik"]
[Black "Goumas, Georgios"]
[Result "0-1"]
[ECO "A45"]
[WhiteElo "2274"]
[BlackElo "2378"]
[Annotator "NA"]
[PlyCount "94"]
[EventDate "2018.12.27"]
[EventType "swiss"]
[EventCountry "POL"]
[SourceTitle "playchess.com"]
[Source "ChessBase"]
[SourceQuality "1"]
[TimeControl "40/5400+30:1800+30"]

1. d4 {[%emt 0:00:00]} Nf6 {[%emt 0:12:26]} 2. Nc3 {[%emt 0:00:09]} d5 {[%emt 0:00:13]} 3. Bf4 {[%emt 0:00:12]} a6 {[%emt 0:00:07]} 4. e3 {[%emt 0:00:35]} Bf5 {[%emt 0:00:35]} 5. f3 {[%emt 0:01:21]} e6 {[%emt 0:01:33]} 6. g4 {[%emt 0:01:40]} Bg6 {[%emt 0:00:10]} 7. h4 {[%emt 0:00:04]} h5 {[%emt 0:03:47]} 8. g5 {[%emt 0:00:06]} Nfd7 {[%emt 0:00:05]} 9. Bd3 {[%emt 0:00:28]} Bxd3 {[%emt 0:00:11]} 10. Qxd3 {[%emt 0:00:51]} g6 {[%emt 0:00:14]} 11. O-O-O {[%emt 0:10:49]} Bg7 {[%emt 0:01:53]} 12. e4 {[%emt 0:01:36]} c6 {[%emt 0:00:06]} 13. Nge2 {[%emt 0:26:19]} b5 {[%emt 0:05:47]} 14. Rhe1 {[%emt 0:02:02]} Nb6 {[%emt 0:08:42]} 15. Bg3 {[%emt 0:07:51]} b4 {[%emt 0:05:37]} 16. Nb1 {[%emt 0:00:29]} O-O {[%emt 0:07:47]} 17. Nd2 {[%emt 0:01:41]} c5 {[%emt 0:06:19]} 18. dxc5 {[%emt 0:15:11]} Na4 {[%emt 0:00:38]} 19. e5 {[%emt 0:00:54]} Nxc5 {[%emt 0:02:33]} 20. Qe3 {[%emt 0:01:11]} Nbd7 {[%emt 0:01:40]} 21. Kb1 {[%emt 0:02:07]} Qc7 {[%emt 0:03:29]} 22. Nd4 {[%emt 0:02:02]} Rfb8 {[%emt 0:00:27]} 23. Rc1 {[%emt 0:09:27]} Na4 {[%emt 0:03:40]} 24. f4 {[%emt 0:00:16]} Ndb6 {[%emt 0:09:52]} 25. f5 {[%emt 0:02:52]} Nxb2 {[%emt 0:13:51]} 26. Kxb2 {[%emt 0:01:36]} gxf5 {[%emt 0:00:06]} 27. Ka1 {[%emt 0:04:14]} Na4 {[%emt 0:04:44]} 28. Nb1 {[%emt 0:02:51]} Nc5 {[%emt 0:02:07]} 29. c4 {[%emt 0:01:42]} b3 {[%emt 0:02:14]} 30. Nxb3 {[%emt 0:00:49]} Rxb3 {[%emt 0:00:24]} 31. axb3 {[%emt 0:01:03]} d4 {[%emt 0:00:01]} 32. Qf3 {[%emt 0:01:03]} Rb8 {[%emt 0:02:10]} 33. Kb2 {[%emt 0:01:08]} Rxb3+ {[%emt 0:01:22]} 34. Qxb3 {[%emt 0:00:03]} Nxb3 {[%emt 0:00:04]} 35. Kxb3 {[%emt 0:00:32]} Qb7+ {[%emt 0:00:01]} 36. Ka4 {[%emt 0:02:12]} Bf8 {[%emt 0:00:21]} 37. c5 {[%emt 0:00:07]} Qb5+ {[%emt 0:00:04]} 38. Ka3 {[%emt 0:00:05]} Bxc5+ {[%emt 0:00:17]} 39. Ka2 {[%emt 0:00:35]} Qa4+ {[%emt 0:00:51]} 40. Kb2 {[%emt 0:00:00]} Qb5+ {[%emt 0:00:00]} 41. Ka2 {[%emt 0:10:39]} d3 {[%emt 0:04:32]} 42. Na3 {[%emt 0:13:29]} Qa5 {[%emt 0:01:49]} 43. Rxc5 {[%emt 0:00:22]} Qxc5 {[%emt 0:00:06]} 44. Rd1 {[%emt 0:06:23]} Qe3 {[%emt 0:03:25]} 45. Be1 {[%emt 0:01:10]} Qe2+ {[%emt 0:00:19]} 46. Rd2 {[%emt 0:00:31]} Qxe1 {[%emt 0:00:04]} 47. Nc4 {[%emt 0:00:06]} Qxh4 {[%emt 0:00:10]} 0-1

[Event "XXIX Cracovia 2018"]
[Site "Krakow"]
[Date "2018.12.30"]
[Round "5"]
[White "Kusnetsov, Sergey"]
[Black "Lewicki, Miroslaw"]
[Result "0-1"]
[ECO "A15"]
[WhiteElo "2257"]
[BlackElo "2347"]
[Annotator "NA"]
[PlyCount "79"]
[EventDate "2018.12.27"]
[EventType "swiss"]
[EventCountry "POL"]
[SourceTitle "playchess.com"]
[Source "ChessBase"]
[SourceQuality "1"]
[TimeControl "40/5400+30:1800+30"]

1. c4 {[%emt 0:00:00]} Nf6 {[%emt 0:08:13]} 2. Nf3 {[%emt 0:00:02]} e6 {[%emt 0:00:15]} 3. g3 {[%emt 0:00:08]} b6 {[%emt 0:00:40]} 4. Bg2 {[%emt 0:00:20]} Bb7 {[%emt 0:00:08]} 5. O-O {[%emt 0:00:16]} Be7 {[%emt 0:00:05]} 6. d4 {[%emt 0:00:34]} O-O {[%emt 0:00:21]} 7. d5 {[%emt 0:03:46]} exd5 {[%emt 0:00:50]} 8. Nh4 {[%emt 0:00:10]} c6 {[%emt 0:01:31]} 9. cxd5 {[%emt 0:00:13]} Nxd5 {[%emt 0:00:43]} 10. Nf5 {[%emt 0:00:10]} Nc7 {[%emt 0:05:23]} 11. Nc3 {[%emt 0:00:23]} d5 {[%emt 0:00:42]} 12. e4 {[%emt 0:00:58]} dxe4 {[%emt 0:05:44]} 13. Qxd8 {[%emt 0:01:05]} Bxd8 {[%emt 0:00:08]} 14. Nxe4 {[%emt 0:00:47]} Nd5 {[%emt 0:03:59]} 15. Rd1 {[%emt 0:02:59]} Nd7 {[%emt 0:00:46]} 16. b4 {[%emt 0:05:35]} N7f6 {[%emt 0:08:40]} 17. Ned6 {[%emt 0:03:16]} Bc8 {[%emt 0:03:20]} 18. b5 {[%emt 0:04:50]} Be6 {[%emt 0:00:53]} 19. bxc6 {[%emt 0:02:33]} Bc7 {[%emt 0:01:56]} 20. Ba3 {[%emt 0:05:34]} Rfd8 {[%emt 0:01:54]} 21. g4 {[%emt 0:26:09]} g6 {[%emt 0:20:32]} 22. Nb5 {[%emt 0:05:50]} Be5 {[%emt 0:06:26]} 23. Ne7+ {[%emt 0:03:22]} Nxe7 {[%emt 0:05:29]} 24. Bxe7 {[%emt 0:01:09]} Re8 {[%emt 0:02:27]} 25. Bxf6 {[%emt 0:01:37]} Bxf6 {[%emt 0:00:06]} 26. c7 {[%emt 0:08:39]} Rac8 {[%emt 0:06:01]} 27. Rac1 {[%emt 0:00:44]} Bg5 {[%emt 0:01:16]} 28. Rc2 {[%emt 0:01:02]} Bxg4 {[%emt 0:00:12]} 29. Rf1 {[%emt 0:12:42]} Bf5 {[%emt 0:00:54]} 30. Rc3 {[%emt 0:02:26]} Bf6 {[%emt 0:04:50]} 31. Ra3 {[%emt 0:00:55]} Re5 {[%emt 0:03:15]} 32. Bb7 {[%emt 0:04:39]} Rxb5 {[%emt 0:00:41]} 33. Bxc8 {[%emt 0:00:02]} Bxc8 {[%emt 0:00:06]} 34. Rxa7 {[%emt 0:00:13]} Rc5 {[%emt 0:00:15]} 35. Rd1 {[%emt 0:00:23]} Kg7 {[%emt 0:01:07]} 36. f4 {[%emt 0:02:42]} Rc2 {[%emt 0:00:59]} 37. Rd3 {[%emt 0:00:55]} Bf5 {[%emt 0:00:42]} 38. Rd5 {[%emt 0:00:52]} Bh4 {[%emt 0:00:27]} 39. Re5 {[%emt 0:00:55]} Bh3 {[%emt 0:00:27]} 40. c8=Q 0-1

[Event "XXIX Cracovia 2018"]
[Site "Krakow"]
[Date "2018.12.30"]
[Round "5"]
[White "Kokoszczynski, Jan"]
[Black "Heinzel, Olaf"]
[Result "1/2-1/2"]
[ECO "B01"]
[WhiteElo "2242"]
[BlackElo "2326"]
[Annotator "NA"]
[PlyCount "69"]
[EventDate "2018.12.27"]
[EventType "swiss"]
[EventCountry "POL"]
[SourceTitle "playchess.com"]
[Source "ChessBase"]
[SourceQuality "1"]
[TimeControl "40/5400+30:1800+30"]

1. e4 d5 2. exd5 Qxd5 3. Nc3 Qd6 4. d4 Nf6 5. Nf3 c6 6. g3 Bg4 7. Bg2 e6 8. h3 Bxf3 9. Bxf3 Qc7 10. Be3 Nbd7 11. Qe2 Bd6 12. Bg2 O-O 13. O-O Nb6 14. Rfd1 Nbd5 15. Nxd5 cxd5 16. c3 Rab8 17. a4 Rfc8 18. Bd2 Qd7 19. Qd3 Bc7 20. b3 Ba5 21. Rac1 Ne8 22. Bf4 Bc7 23. Be3 Nd6 24. c4 dxc4 25. bxc4 Nf5 26. d5 Nxe3 27. Qxe3 exd5 28. Bxd5 Qxa4 29. Ra1 Qb4 30. Rdb1 Qd6 31. Rxa7 b5 32. Qf3 Qc5 33. Ra2 bxc4 34. Rc1 Qe7 35. Bxc4 1/2-1/2

[Event "XXIX Cracovia 2018"]
[Site "Krakow"]
[Date "2018.12.30"]
[Round "5"]
[White "Ustinov, Alexey"]
[Black "Zakrzewski, Marek"]
[Result "1-0"]
[ECO "A04"]
[WhiteElo "2232"]
[BlackElo "2311"]
[Annotator "NA"]
[PlyCount "56"]
[EventDate "2018.12.27"]
[EventType "swiss"]
[EventCountry "POL"]
[SourceTitle "playchess.com"]
[Source "ChessBase"]
[SourceQuality "1"]
[TimeControl "40/5400+30:1800+30"]

1. Nf3 {[%emt 0:00:04]} c5 {[%emt 0:00:00]} 2. c4 {[%emt 0:00:10]} Nc6 {[%emt 0:00:19]} 3. Nc3 {[%emt 0:00:14]} g6 {[%emt 0:00:18]} 4. e3 {[%emt 0:01:50]} Nf6 {[%emt 0:00:08]} 5. d4 {[%emt 0:00:11]} cxd4 {[%emt 0:00:08]} 6. exd4 {[%emt 0:00:03]} d5 {[%emt 0:00:10]} 7. cxd5 {[%emt 0:01:34]} Nxd5 {[%emt 0:00:10]} 8. Qb3 {[%emt 0:00:49]} e6 {[%emt 0:00:43]} 9. Bb5 {[%emt 0:05:21]} Bg7 {[%emt 0:01:13]} 10. Bg5 {[%emt 0:00:15]} f6 {[%emt 0:03:25]} 11. Bd2 {[%emt 0:03:53]} O-O {[%emt 0:02:03]} 12. h4 {[%emt 0:09:28]} a6 {[%emt 0:10:45]} 13. Bxc6 {[%emt 0:05:14]} bxc6 {[%emt 0:01:39]} 14. Ne4 {[%emt 0:04:15]} e5 {[%emt 0:07:10]} 15. dxe5 {[%emt 0:13:01]} Bg4 {[%emt 0:00:39]} 16. exf6 {[%emt 0:05:52]} Bxf6 {[%emt 0:00:27]} 17. Bg5 {[%emt 0:03:41]} Qe8 {[%emt 0:10:04]} 18. Nfd2 {[%emt 0:01:41]} Rb8 {[%emt 0:00:56]} 19. Qg3 {[%emt 0:03:50]} Bf5 {[%emt 0:02:07]} 20. O-O {[%emt 0:03:31]} Bxe4 {[%emt 0:04:06]} 21. Rae1 {[%emt 0:01:57]} Be5 {[%emt 0:01:10]} 22. f4 {[%emt 0:04:51]} Bd4+ {[%emt 0:01:02]} 23. Kh2 {[%emt 0:00:13]} Ne3 {[%emt 0:01:16]} 24. Rxe3 {[%emt 0:00:05]} Bxe3 {[%emt 0:00:06]} 25. Qxe3 {[%emt 0:00:02]} Bd5 {[%emt 0:06:40]} 26. Qd4 {[%emt 0:00:33]} Qf7 {[%emt 0:03:14]} 27. f5 {[%emt 0:05:31]} gxf5 {[%emt 0:01:26]} 28. Bh6 {[%emt 0:00:35]} Qg6 {[%emt 0:00:45]} 1-0

[Event "XXIX Cracovia 2018"]
[Site "Krakow"]
[Date "2018.12.30"]
[Round "5"]
[White "Lukasiewicz, Krzysztof"]
[Black "Zylka, Stanislaw"]
[Result "1/2-1/2"]
[ECO "A45"]
[WhiteElo "2223"]
[BlackElo "2305"]
[Annotator "NA"]
[PlyCount "65"]
[EventDate "2018.12.27"]
[EventType "swiss"]
[EventCountry "POL"]
[SourceTitle "playchess.com"]
[Source "ChessBase"]
[SourceQuality "1"]
[TimeControl "40/5400+30:1800+30"]

1. d4 {[%emt 0:00:00]} Nf6 {[%emt 0:00:00]} 2. Bf4 {[%emt 0:00:00]} e6 {[%emt 0:00:00]} 3. e3 {[%emt 0:00:08]} c5 {[%emt 0:00:06]} 4. Nf3 {[%emt 0:00:09]} d5 {[%emt 0:00:45]} 5. c3 {[%emt 0:00:52]} Nc6 {[%emt 0:00:07]} 6. Nbd2 {[%emt 0:00:05]} cxd4 {[%emt 0:00:09]} 7. exd4 {[%emt 0:00:07]} Nh5 {[%emt 0:00:22]} 8. Be3 {[%emt 0:00:26]} Bd6 {[%emt 0:00:23]} 9. Ne5 {[%emt 0:00:07]} g6 {[%emt 0:00:42]} 10. g4 {[%emt 0:01:18]} Nf6 {[%emt 0:01:12]} 11. Nxc6 {[%emt 0:21:15]} bxc6 {[%emt 0:00:11]} 12. h4 {[%emt 0:00:10]} h5 {[%emt 0:04:41]} 13. gxh5 {[%emt 0:05:03]} Nxh5 {[%emt 0:00:18]} 14. Nf3 {[%emt 0:00:31]} Rb8 {[%emt 0:00:46]} 15. Qd2 {[%emt 0:02:21]} Qb6 {[%emt 0:00:57]} 16. Rb1 {[%emt 0:01:46]} Ba6 {[%emt 0:01:54]} 17. Bh3 {[%emt 0:01:28]} Qb5 {[%emt 0:01:27]} 18. Bf1 {[%emt 0:07:02]} Qa5 {[%emt 0:02:08]} 19. b3 {[%emt 0:00:06]} Bxf1 {[%emt 0:00:51]} 20. Kxf1 {[%emt 0:00:03]} Qc7 {[%emt 0:07:02]} 21. Re1 {[%emt 0:00:30]} a5 {[%emt 0:02:09]} 22. Qc2 {[%emt 0:02:40]} Ng7 {[%emt 0:01:42]} 23. Bg5 {[%emt 0:00:53]} Rh5 {[%emt 0:01:39]} 24. Bf6 {[%emt 0:01:22]} Nf5 {[%emt 0:01:43]} 25. Rg1 {[%emt 0:01:48]} c5 {[%emt 0:10:46]} 26. Qe2 {[%emt 0:05:34]} cxd4 {[%emt 0:04:11]} 27. cxd4 {[%emt 0:00:32]} Qc6 {[%emt 0:05:48]} 28. Rg5 {[%emt 0:06:11]} Rxg5 {[%emt 0:01:23]} 29. hxg5 {[%emt 0:05:34]} Qb5 {[%emt 0:07:35]} 30. Qxb5+ {[%emt 0:00:52]} Rxb5 {[%emt 0:00:03]} 31. Kg2 {[%emt 0:00:08]} a4 {[%emt 0:01:47]} 32. bxa4 {[%emt 0:00:32]} Ra5 {[%emt 0:02:39]} 33. Rh1 {[%emt 0:07:54]} 1/2-1/2

[Event "XXIX Cracovia 2018"]
[Site "Krakow"]
[Date "2018.12.30"]
[Round "5"]
[White "Kusnetsov, Igor"]
[Black "Nikitin, Aleksander I"]
[Result "0-1"]
[ECO "A10"]
[WhiteElo "2094"]
[BlackElo "2031"]
[Annotator "NA"]
[PlyCount "68"]
[EventDate "2018.12.27"]
[EventType "swiss"]
[EventCountry "POL"]
[SourceTitle "playchess.com"]
[Source "ChessBase"]
[SourceQuality "1"]
[TimeControl "40/5400+30:1800+30"]

1. c4 f5 2. Nc3 Nf6 3. d4 d6 4. Nf3 c6 5. Bg5 g6 6. Bxf6 exf6 7. e3 h5 8. Bd3 Na6 9. Nh4 Kf7 10. Qb3 Bh6 11. O-O-O Qa5 12. a3 Rb8 13. Kb1 Be6 14. d5 cxd5 15. cxd5 Bd7 16. Bb5 Qb6 17. Nf3 Nc7 18. Ba4 Qxb3 19. Bxb3 b5 20. Ne2 b4 21. a4 Na6 22. Bc4 Nc5 23. b3 Rhc8 24. Nfd4 Ne4 25. Rhf1 Rc7 26. Nc6 Re8 27. Nxb4 Rxc4 28. bxc4 Rb8 29. Kc1 Rxb4 30. a5 Rxc4+ 31. Kb2 Rb4+ 32. Ka3 Ra4+ 33. Kb2 Bb5 34. Rfe1 Nxf2 0-1